[Event "*** Titled Tuesday Blitz"]
[Site "Chess.com"]
[Date "2021.02.16"]
[Round "1"]
[White "MIJuanReyesRosa"]
[Black "maxip32"]
[Result "0-1"]
[WhiteElo "2127"]
[BlackElo "2506"]
[TimeControl "180+1"]
[EndTime "10:07:13 PST"]
[Termination "maxip32 won on time"]

1. d4 {[%clk 0:02:58]} 1... Nf6 {[%clk 0:02:59.2]} 2. Nf3 {[%clk 0:02:57.4]}
2... g6 {[%clk 0:02:59.3]} 3. c4 {[%clk 0:02:56.8]} 3... Bg7 {[%clk 0:02:59.7]}
4. Nc3 {[%clk 0:02:56.9]} 4... O-O {[%clk 0:03:00.6]} 5. e4 {[%clk 0:02:57.1]}
5... d6 {[%clk 0:03:00.8]} 6. Be2 {[%clk 0:02:57.4]} 6... Na6 {[%clk 0:03:01.4]}
7. O-O {[%clk 0:02:56.6]} 7... e5 {[%clk 0:03:01.5]} 8. Re1 {[%clk 0:02:56]}
8... exd4 {[%clk 0:02:47.5]} 9. Nxd4 {[%clk 0:02:55.5]} 9... Re8 {[%clk
0:02:46.5]} 10. Bf1 {[%clk 0:02:54.3]} 10... c6 {[%clk 0:02:41.8]} 11. f3 {[%clk
0:02:50.3]} 11... Nc5 {[%clk 0:02:23.7]} 12. Be3 {[%clk 0:02:49]} 12... a5
{[%clk 0:02:22.7]} 13. Rc1 {[%clk 0:02:44.5]} 13... Nfd7 {[%clk 0:02:13.9]} 14.
Qd2 {[%clk 0:02:42]} 14... Ne5 {[%clk 0:02:02.8]} 15. b3 {[%clk 0:02:37.7]}
15... Qe7 {[%clk 0:01:56.5]} 16. Bf2 {[%clk 0:02:31.1]} 16... Bd7 {[%clk
0:01:54.9]} 17. Rcd1 {[%clk 0:02:21.5]} 17... Rad8 {[%clk 0:01:54.1]} 18. Kh1
{[%clk 0:02:20.8]} 18... Bc8 {[%clk 0:01:53.3]} 19. Qc2 {[%clk 0:01:39.5]} 19...
h5 {[%clk 0:01:37.1]} 20. a3 {[%clk 0:01:38.3]} 20... h4 {[%clk 0:01:14.7]} 21.
b4 {[%clk 0:01:37.6]} 21... axb4 {[%clk 0:01:15.6]} 22. axb4 {[%clk 0:01:36.9]}
22... Ne6 {[%clk 0:01:16.5]} 23. Nxe6 {[%clk 0:01:23.7]} 23... Bxe6 {[%clk
0:01:17.4]} 24. Na4 {[%clk 0:00:56.7]} 24... h3 {[%clk 0:01:16.9]} 25. f4 {[%clk
0:00:41.5]} 25... hxg2+ {[%clk 0:01:14.1]} 26. Bxg2 {[%clk 0:00:29.8]} 26... Ng4
{[%clk 0:00:53.1]} 27. Bb6 {[%clk 0:00:26.2]} 27... Ra8 {[%clk 0:00:43.7]} 28.
Bf3 {[%clk 0:00:19.6]} 28... Qh4 {[%clk 0:00:36.7]} 29. Bxg4 {[%clk 0:00:13.9]}
29... Bxg4 {[%clk 0:00:35.8]} 30. Rc1 {[%clk 0:00:06.5]} 30... Bf3+ {[%clk
0:00:20.4]} 31. Kg1 {[%clk 0:00:06.1]} 31... Qxf4 {[%clk 0:00:20.6]} 32. Be3
{[%clk 0:00:04.7]} 32... Qg4+ {[%clk 0:00:20.5]} 33. Kf1 {[%clk 0:00:04.1]}
33... Rxa4 {[%clk 0:00:20.6]} 0-1

[Event "*** Titled Tuesday Blitz"]
[Site "Chess.com"]
[Date "2021.02.16"]
[Round "1"]
[White "KetiGrant"]
[Black "AcostaPablo"]
[Result "0-1"]
[WhiteElo "2369"]
[BlackElo "2691"]
[TimeControl "180+1"]
[EndTime "10:07:14 PST"]
[Termination "AcostaPablo won on time"]

1. e4 {[%clk 0:03:00.1]} 1... c5 {[%clk 0:02:58.6]} 2. Nf3 {[%clk 0:02:59.5]}
2... e6 {[%clk 0:02:58.6]} 3. d4 {[%clk 0:02:58.9]} 3... cxd4 {[%clk 0:02:59.5]}
4. Nxd4 {[%clk 0:02:59.4]} 4... a6 {[%clk 0:02:59.9]} 5. Bd3 {[%clk 0:02:58.5]}
5... Nf6 {[%clk 0:02:59.2]} 6. O-O {[%clk 0:02:52.3]} 6... Qc7 {[%clk 0:02:58]}
7. Qe2 {[%clk 0:02:51.6]} 7... d6 {[%clk 0:02:53.8]} 8. c4 {[%clk 0:02:47]} 8...
Nc6 {[%clk 0:02:52.9]} 9. Be3 {[%clk 0:02:46.1]} 9... Ne5 {[%clk 0:02:50.9]} 10.
Nd2 {[%clk 0:02:38.9]} 10... Be7 {[%clk 0:02:43.2]} 11. Rac1 {[%clk 0:02:32.4]}
11... Nxd3 {[%clk 0:02:39]} 12. Qxd3 {[%clk 0:02:31.9]} 12... O-O {[%clk
0:02:39]} 13. Kh1 {[%clk 0:02:25.9]} 13... b6 {[%clk 0:02:33.6]} 14. f4 {[%clk
0:02:11.2]} 14... Bb7 {[%clk 0:02:29.6]} 15. f5 {[%clk 0:02:10.5]} 15... Qd7
{[%clk 0:02:08.2]} 16. Ne2 {[%clk 0:01:56.5]} 16... b5 {[%clk 0:01:59.8]} 17.
Bd4 {[%clk 0:01:32]} 17... Rac8 {[%clk 0:01:54]} 18. b3 {[%clk 0:00:59.7]} 18...
Rfd8 {[%clk 0:01:40.4]} 19. Nc3 {[%clk 0:00:54.4]} 19... Bc6 {[%clk 0:01:25.6]}
20. Qg3 {[%clk 0:00:51.5]} 20... b4 {[%clk 0:01:19.7]} 21. fxe6 {[%clk
0:00:49.8]} 21... fxe6 {[%clk 0:01:14.6]} 22. Bxf6 {[%clk 0:00:42.8]} 22... Bxf6
{[%clk 0:01:13.7]} 23. Rxf6 {[%clk 0:00:42]} 23... bxc3 {[%clk 0:01:14.2]} 24.
Rxc3 {[%clk 0:00:40.9]} 24... Rf8 {[%clk 0:01:11]} 25. Rcf3 {[%clk 0:00:32.6]}
25... Rxf6 {[%clk 0:01:09.3]} 26. Rxf6 {[%clk 0:00:32.5]} 26... Qe7 {[%clk
0:01:02.4]} 27. Rf1 {[%clk 0:00:30.2]} 27... Rf8 {[%clk 0:00:57.3]} 28. Rxf8+
{[%clk 0:00:27.1]} 28... Qxf8 {[%clk 0:00:57.1]} 29. Qf3 {[%clk 0:00:26.5]}
29... Qd8 {[%clk 0:00:56.1]} 30. Kg1 {[%clk 0:00:24.6]} 30... Qa5 {[%clk
0:00:53.4]} 31. Qd3 {[%clk 0:00:20.2]} 31... Qe5 {[%clk 0:00:45.5]} 32. a4
{[%clk 0:00:14]} 32... a5 {[%clk 0:00:43.9]} 33. Nf3 {[%clk 0:00:08.4]} 33...
Qf4 {[%clk 0:00:37.8]} 34. Nd2 {[%clk 0:00:02.5]} 34... h5 {[%clk 0:00:31.1]}
35. g3 {[%clk 0:00:02.2]} 35... Qe5 {[%clk 0:00:29.3]} 36. Kf2 {[%clk
0:00:02.2]} 36... Qc5+ {[%clk 0:00:26.5]} 37. Qe3 {[%clk 0:00:01.7]} 37... Qe5
{[%clk 0:00:23.4]} 0-1

[Event "*** Titled Tuesday Blitz"]
[Site "Chess.com"]
[Date "2021.02.16"]
[Round "1"]
[White "sergivila"]
[Black "JosefineHeinemann"]
[Result "0-1"]
[WhiteElo "2293"]
[BlackElo "2600"]
[TimeControl "180+1"]
[EndTime "10:07:15 PST"]
[Termination "JosefineHeinemann won by resignation"]

1. e4 {[%clk 0:03:00.2]} 1... c5 {[%clk 0:02:59.6]} 2. Nf3 {[%clk 0:02:59.5]}
2... d6 {[%clk 0:02:59.6]} 3. Bb5+ {[%clk 0:02:57.6]} 3... Nd7 {[%clk
0:02:58.2]} 4. d4 {[%clk 0:02:53]} 4... cxd4 {[%clk 0:02:55.8]} 5. Qxd4 {[%clk
0:02:53.9]} 5... a6 {[%clk 0:02:55.4]} 6. Bxd7+ {[%clk 0:02:53.3]} 6... Bxd7
{[%clk 0:02:56.3]} 7. c4 {[%clk 0:02:53.1]} 7... Nf6 {[%clk 0:02:53.7]} 8. Nc3
{[%clk 0:02:51.2]} 8... g6 {[%clk 0:02:44.6]} 9. Bg5 {[%clk 0:02:29.3]} 9... Bg7
{[%clk 0:02:43.9]} 10. Nd5 {[%clk 0:02:23.6]} 10... e5 {[%clk 0:02:18.6]} 11.
Qd3 {[%clk 0:02:18.3]} 11... Bc6 {[%clk 0:02:08.5]} 12. O-O {[%clk 0:02:15]}
12... Bxd5 {[%clk 0:02:07.5]} 13. cxd5 {[%clk 0:01:56.4]} 13... O-O {[%clk
0:02:06.6]} 14. Rfc1 {[%clk 0:01:52.7]} 14... Qb6 {[%clk 0:02:03.5]} 15. Bxf6
{[%clk 0:01:50.3]} 15... Bxf6 {[%clk 0:02:03.3]} 16. Rc2 {[%clk 0:01:40.2]}
16... Rfc8 {[%clk 0:01:54.2]} 17. Rac1 {[%clk 0:01:38.2]} 17... Qd8 {[%clk
0:01:54.3]} 18. a4 {[%clk 0:01:32]} 18... Qd7 {[%clk 0:01:37.4]} 19. Qb3 {[%clk
0:01:28]} 19... Bd8 {[%clk 0:01:33.4]} 20. Nd2 {[%clk 0:01:20.9]} 20... Bg5
{[%clk 0:01:26.1]} 21. Rxc8+ {[%clk 0:01:18.6]} 21... Rxc8 {[%clk 0:01:25.2]}
22. Rxc8+ {[%clk 0:01:18.5]} 22... Qxc8 {[%clk 0:01:26.1]} 23. Nc4 {[%clk
0:01:18]} 23... Qc5 {[%clk 0:01:05.4]} 24. g3 {[%clk 0:00:57.5]} 24... b5 {[%clk
0:01:02.1]} 25. axb5 {[%clk 0:00:56.3]} 25... axb5 {[%clk 0:01:03]} 26. Na3
{[%clk 0:00:42.7]} 26... b4 {[%clk 0:00:55.9]} 27. Nc4 {[%clk 0:00:42.5]} 27...
f5 {[%clk 0:00:56.5]} 28. exf5 {[%clk 0:00:41.1]} 28... gxf5 {[%clk 0:00:57.4]}
29. Qd3 {[%clk 0:00:38.9]} 29... e4 {[%clk 0:00:55.3]} 30. Qe2 {[%clk
0:00:33.4]} 30... Qxd5 {[%clk 0:00:44.4]} 31. b3 {[%clk 0:00:32.6]} 31... Qe6
{[%clk 0:00:41.9]} 32. Qh5 {[%clk 0:00:19.8]} 32... h6 {[%clk 0:00:37.7]} 33. h4
{[%clk 0:00:19.4]} 33... d5 {[%clk 0:00:36.4]} 34. Nb2 {[%clk 0:00:10.1]} 34...
Bc1 {[%clk 0:00:31.7]} 35. Na4 {[%clk 0:00:10.3]} 35... d4 {[%clk 0:00:29.5]}
36. Qd1 {[%clk 0:00:10.4]} 36... e3 {[%clk 0:00:20.5]} 37. Qxc1 {[%clk 0:00:10]}
37... e2 {[%clk 0:00:19.5]} 38. Qe1 {[%clk 0:00:10]} 38... d3 {[%clk 0:00:20.1]}
39. Nc5 {[%clk 0:00:09]} 39... d2 {[%clk 0:00:19.4]} 40. Qxd2 {[%clk 0:00:07.7]}
40... e1=Q+ {[%clk 0:00:19.1]} 0-1

[Event "*** Titled Tuesday Blitz"]
[Site "Chess.com"]
[Date "2021.02.16"]
[Round "1"]
[White "Piccadilly123"]
[Black "klimkoj"]
[Result "1-0"]
[WhiteElo "2271"]
[BlackElo "2552"]
[TimeControl "180+1"]
[EndTime "10:07:16 PST"]
[Termination "Piccadilly123 won on time"]

1. e4 {[%clk 0:03:00.9]} 1... c5 {[%clk 0:02:59.5]} 2. c3 {[%clk 0:03:00.5]}
2... d5 {[%clk 0:02:58.5]} 3. exd5 {[%clk 0:03:00.7]} 3... Qxd5 {[%clk
0:02:59.2]} 4. d4 {[%clk 0:03:01.4]} 4... Nc6 {[%clk 0:02:56.8]} 5. Nf3 {[%clk
0:03:01.6]} 5... Bf5 {[%clk 0:02:53.8]} 6. Be3 {[%clk 0:02:47.2]} 6... cxd4
{[%clk 0:02:53.1]} 7. cxd4 {[%clk 0:02:46.5]} 7... Bxb1 {[%clk 0:02:52]} 8. Qxb1
{[%clk 0:02:43.6]} 8... e5 {[%clk 0:02:51.7]} 9. dxe5 {[%clk 0:02:28.1]} 9...
Bb4+ {[%clk 0:02:37]} 10. Bd2 {[%clk 0:02:27]} 10... Bxd2+ {[%clk 0:02:29.3]}
11. Nxd2 {[%clk 0:02:27.9]} 11... O-O-O {[%clk 0:02:24.8]} 12. Qc2 {[%clk
0:02:19.4]} 12... Kb8 {[%clk 0:02:08.6]} 13. Nf3 {[%clk 0:01:30.6]} 13... Nxe5
{[%clk 0:01:58.9]} 14. Be2 {[%clk 0:01:15.5]} 14... Nxf3+ {[%clk 0:01:50.3]} 15.
Bxf3 {[%clk 0:01:16.4]} 15... Qe5+ {[%clk 0:01:49.2]} 16. Qe2 {[%clk 0:01:07.6]}
16... Qa5+ {[%clk 0:01:48.1]} 17. Kf1 {[%clk 0:01:06.3]} 17... Nf6 {[%clk
0:01:47.9]} 18. g3 {[%clk 0:01:03.7]} 18... Rhe8 {[%clk 0:01:43]} 19. Qc4 {[%clk
0:00:56.9]} 19... Rd2 {[%clk 0:01:26.7]} 20. Kg2 {[%clk 0:00:39.5]} 20... Qc7
{[%clk 0:00:42.5]} 21. Qb3 {[%clk 0:00:24.6]} 21... g5 {[%clk 0:00:25.5]} 22.
Rac1 {[%clk 0:00:21.9]} 22... Qd7 {[%clk 0:00:20]} 23. Rhd1 {[%clk 0:00:19.1]}
23... g4 {[%clk 0:00:18.6]} 24. Bc6 {[%clk 0:00:11.6]} 24... Rxd1 {[%clk
0:00:06.2]} 25. Bxd7 {[%clk 0:00:11.1]} 25... Rxd7 {[%clk 0:00:07.1]} 26. Rd1
{[%clk 0:00:09.7]} 26... Rde7 {[%clk 0:00:06.4]} 27. Rd4 {[%clk 0:00:06.9]}
27... Ne4 {[%clk 0:00:05.7]} 28. Rb4 {[%clk 0:00:04.9]} 28... Nxf2 {[%clk
0:00:02.2]} 29. Rf4 {[%clk 0:00:03.1]} 29... Ne4 {[%clk 0:00:01.4]} 30. Rxf7
{[%clk 0:00:03]} 1-0

[Event "*** Titled Tuesday Blitz"]
[Site "Chess.com"]
[Date "2021.02.16"]
[Round "1"]
[White "ajdemipopushi"]
[Black "ENajer77"]
[Result "1-0"]
[WhiteElo "2344"]
[BlackElo "2612"]
[TimeControl "180+1"]
[EndTime "10:07:18 PST"]
[Termination "ajdemipopushi won on time"]

1. Nf3 {[%clk 0:03:00.9]} 1... d5 {[%clk 0:02:32.9]} 2. g3 {[%clk 0:03:00.6]}
2... g6 {[%clk 0:02:32.6]} 3. c4 {[%clk 0:02:59.7]} 3... Bg7 {[%clk 0:02:33.2]}
4. cxd5 {[%clk 0:02:59.4]} 4... Nf6 {[%clk 0:02:30.3]} 5. Bg2 {[%clk 0:02:59.2]}
5... Nxd5 {[%clk 0:02:29.2]} 6. d4 {[%clk 0:02:58.9]} 6... O-O {[%clk
0:02:28.8]} 7. O-O {[%clk 0:02:57.7]} 7... Nb6 {[%clk 0:02:25.2]} 8. Nc3 {[%clk
0:02:57.1]} 8... Nc6 {[%clk 0:02:24.1]} 9. d5 {[%clk 0:02:57.1]} 9... Na5 {[%clk
0:02:23.7]} 10. e4 {[%clk 0:02:56.9]} 10... c6 {[%clk 0:02:23.6]} 11. Re1 {[%clk
0:02:56.8]} 11... Bg4 {[%clk 0:02:20.9]} 12. h3 {[%clk 0:02:56.5]} 12... Bxf3
{[%clk 0:02:20.7]} 13. Qxf3 {[%clk 0:02:57.2]} 13... Nac4 {[%clk 0:02:18.4]} 14.
b3 {[%clk 0:02:53.8]} 14... Ne5 {[%clk 0:02:01.7]} 15. Qe2 {[%clk 0:02:53.6]}
15... Ned7 {[%clk 0:01:43]} 16. Bb2 {[%clk 0:02:44.4]} 16... Rc8 {[%clk
0:01:40.5]} 17. Rad1 {[%clk 0:02:39.3]} 17... cxd5 {[%clk 0:01:37]} 18. Nxd5
{[%clk 0:02:37.9]} 18... Bxb2 {[%clk 0:01:32.9]} 19. Qxb2 {[%clk 0:02:37.5]}
19... Nxd5 {[%clk 0:01:31.7]} 20. exd5 {[%clk 0:02:25.5]} 20... Nf6 {[%clk
0:01:30.1]} 21. d6 {[%clk 0:02:25.2]} 21... exd6 {[%clk 0:01:26.6]} 22. Bxb7
{[%clk 0:02:24.9]} 22... Rc7 {[%clk 0:01:15.5]} 23. Bf3 {[%clk 0:02:20.4]} 23...
Re8 {[%clk 0:01:15.2]} 24. Qd4 {[%clk 0:02:02.3]} 24... Rxe1+ {[%clk 0:01:05.9]}
25. Rxe1 {[%clk 0:02:01.9]} 25... h5 {[%clk 0:01:02.3]} 26. Rd1 {[%clk
0:01:49.1]} 26... Kg7 {[%clk 0:00:52.8]} 27. Kg2 {[%clk 0:01:34.8]} 27... Rc2
{[%clk 0:00:39.9]} 28. Qxa7 {[%clk 0:01:27.7]} 28... d5 {[%clk 0:00:33.8]} 29.
a4 {[%clk 0:01:25.5]} 29... Rb2 {[%clk 0:00:25.4]} 30. Rd3 {[%clk 0:01:13.3]}
30... Qc8 {[%clk 0:00:17.9]} 31. Qd4 {[%clk 0:01:11.2]} 31... Qc1 {[%clk
0:00:15.7]} 32. Rd1 {[%clk 0:00:59.6]} 32... Qc2 {[%clk 0:00:14.5]} 33. Bxd5
{[%clk 0:00:57.5]} 33... Qe2 {[%clk 0:00:08.3]} 34. Bf3 {[%clk 0:00:52]} 34...
Qc2 {[%clk 0:00:07.6]} 35. a5 {[%clk 0:00:49.1]} 35... Qxb3 {[%clk 0:00:07.3]}
36. a6 {[%clk 0:00:48.3]} 36... Ra2 {[%clk 0:00:07.5]} 37. a7 {[%clk 0:00:42.4]}
37... Ra4 {[%clk 0:00:02.3]} 38. a8=Q {[%clk 0:00:36.3]} 38... Rxa8 {[%clk
0:00:01.5]} 39. Bxa8 {[%clk 0:00:35.5]} 39... Qa2 {[%clk 0:00:02.2]} 40. Bd5
{[%clk 0:00:34.9]} 40... Qc2 {[%clk 0:00:02.2]} 41. Rd2 {[%clk 0:00:34.8]} 41...
Qf5 {[%clk 0:00:01.9]} 42. Bf3 {[%clk 0:00:32.1]} 1-0

[Event "*** Titled Tuesday Blitz"]
[Site "Chess.com"]
[Date "2021.02.16"]
[Round "1"]
[White "Susal_De_Silva"]
[Black "Fortitudine"]
[Result "1-0"]
[WhiteElo "2628"]
[BlackElo "2327"]
[TimeControl "180+1"]
[EndTime "10:07:18 PST"]
[Termination "Susal_De_Silva won on time"]

1. e4 {[%clk 0:03:00.9]} 1... c5 {[%clk 0:02:58.2]} 2. Nf3 {[%clk 0:03:01]} 2...
d6 {[%clk 0:02:58.1]} 3. Bb5+ {[%clk 0:03:01.2]} 3... Nd7 {[%clk 0:02:57.7]} 4.
O-O {[%clk 0:03:00.7]} 4... g6 {[%clk 0:02:56.4]} 5. Re1 {[%clk 0:02:59.8]} 5...
Bg7 {[%clk 0:02:55.3]} 6. c3 {[%clk 0:02:57.9]} 6... a6 {[%clk 0:02:52.5]} 7.
Bd3 {[%clk 0:02:56.6]} 7... Ngf6 {[%clk 0:02:51.6]} 8. Bc2 {[%clk 0:02:56.7]}
8... O-O {[%clk 0:02:50]} 9. d4 {[%clk 0:02:57.3]} 9... cxd4 {[%clk 0:02:49.2]}
10. cxd4 {[%clk 0:02:58.2]} 10... e5 {[%clk 0:02:49.1]} 11. Nc3 {[%clk
0:02:56.4]} 11... b5 {[%clk 0:02:45.7]} 12. Bg5 {[%clk 0:02:53.9]} 12... Bb7
{[%clk 0:02:40.9]} 13. dxe5 {[%clk 0:02:52.2]} 13... Nxe5 {[%clk 0:02:36.2]} 14.
Nd5 {[%clk 0:02:39.6]} 14... Bxd5 {[%clk 0:02:32.8]} 15. exd5 {[%clk 0:02:40.5]}
15... Re8 {[%clk 0:02:26.5]} 16. Nxe5 {[%clk 0:02:39.3]} 16... Rxe5 {[%clk
0:02:14.2]} 17. Rxe5 {[%clk 0:02:38.3]} 17... dxe5 {[%clk 0:02:15.1]} 18. Be4
{[%clk 0:02:35.5]} 18... Qd6 {[%clk 0:02:10.8]} 19. Bxf6 {[%clk 0:02:34.2]}
19... Bxf6 {[%clk 0:02:02.1]} 20. Rc1 {[%clk 0:02:35.1]} 20... Rd8 {[%clk
0:01:42.2]} 21. Qb3 {[%clk 0:02:29.2]} 21... Bg7 {[%clk 0:01:07.4]} 22. Rc6
{[%clk 0:02:26.8]} 22... Qd7 {[%clk 0:00:59.8]} 23. d6 {[%clk 0:02:24.8]} 23...
Rf8 {[%clk 0:00:48.7]} 24. Qd5 {[%clk 0:02:22]} 24... Qg4 {[%clk 0:00:42.9]} 25.
f3 {[%clk 0:02:15.9]} 25... Qg5 {[%clk 0:00:42.2]} 26. d7 {[%clk 0:02:04.8]}
26... Rd8 {[%clk 0:00:31.1]} 27. Rc8 {[%clk 0:02:01.3]} 27... Bf6 {[%clk
0:00:31.3]} 28. g3 {[%clk 0:01:47.4]} 28... Qe3+ {[%clk 0:00:28.6]} 29. Kf1
{[%clk 0:01:47.3]} 29... Kg7 {[%clk 0:00:25]} 30. Rxd8 {[%clk 0:01:33.7]} 30...
Bxd8 {[%clk 0:00:25.9]} 31. Qxe5+ {[%clk 0:01:34.3]} 31... Kh6 {[%clk
0:00:14.7]} 32. Qe8 {[%clk 0:00:40.1]} 32... Bb6 {[%clk 0:00:13.8]} 33. Qf8+
{[%clk 0:00:39.4]} 33... Kh5 {[%clk 0:00:11.1]} 34. g4+ {[%clk 0:00:30.2]} 34...
Kg5 {[%clk 0:00:08]} 35. d8=Q+ {[%clk 0:00:30.3]} 35... Bxd8 {[%clk 0:00:07.3]}
36. Qxd8+ {[%clk 0:00:31.2]} 36... f6 {[%clk 0:00:07.5]} 37. Qd3 {[%clk
0:00:29.9]} 37... Qc1+ {[%clk 0:00:05.6]} 38. Ke2 {[%clk 0:00:28.6]} 1-0

[Event "*** Titled Tuesday Blitz"]
[Site "Chess.com"]
[Date "2021.02.16"]
[Round "1"]
[White "DrRiebert"]
[Black "GigaQuparadze"]
[Result "1-0"]
[WhiteElo "2480"]
[BlackElo "2935"]
[TimeControl "180+1"]
[EndTime "10:07:20 PST"]
[Termination "DrRiebert won by resignation"]

1. e4 {[%clk 0:03:00.9]} 1... c5 {[%clk 0:02:59.5]} 2. Nf3 {[%clk 0:03:01.1]}
2... e6 {[%clk 0:02:59.8]} 3. d4 {[%clk 0:03:01.5]} 3... cxd4 {[%clk 0:03:00.7]}
4. Nxd4 {[%clk 0:03:02.4]} 4... a6 {[%clk 0:03:01.1]} 5. Nc3 {[%clk 0:03:02]}
5... b5 {[%clk 0:03:00.1]} 6. a4 {[%clk 0:02:45.6]} 6... b4 {[%clk 0:02:59.7]}
7. Na2 {[%clk 0:02:46.2]} 7... Nf6 {[%clk 0:02:57.1]} 8. Bd3 {[%clk 0:02:43.9]}
8... Bb7 {[%clk 0:02:55]} 9. Qe2 {[%clk 0:02:44.1]} 9... Nc6 {[%clk 0:02:36.8]}
10. Nxc6 {[%clk 0:02:44]} 10... Bxc6 {[%clk 0:02:37.7]} 11. b3 {[%clk
0:02:44.6]} 11... Qc7 {[%clk 0:02:35.3]} 12. O-O {[%clk 0:02:40.7]} 12... Bd6
{[%clk 0:02:34.2]} 13. Kh1 {[%clk 0:02:36.2]} 13... a5 {[%clk 0:02:33.5]} 14. c3
{[%clk 0:02:33.8]} 14... bxc3 {[%clk 0:02:28.8]} 15. Nxc3 {[%clk 0:02:33.6]}
15... Be5 {[%clk 0:02:20.6]} 16. Bd2 {[%clk 0:02:33.2]} 16... O-O {[%clk
0:02:16.4]} 17. f4 {[%clk 0:02:16.9]} 17... Bd4 {[%clk 0:02:16.3]} 18. Rad1
{[%clk 0:02:16.8]} 18... Qb7 {[%clk 0:02:15.7]} 19. Nb5 {[%clk 0:02:05.9]} 19...
Bc5 {[%clk 0:02:15.4]} 20. e5 {[%clk 0:01:53.9]} 20... Nd5 {[%clk 0:02:15.2]}
21. f5 {[%clk 0:01:51]} 21... exf5 {[%clk 0:02:10]} 22. Rxf5 {[%clk 0:01:51.9]}
22... g6 {[%clk 0:02:09.3]} 23. Rff1 {[%clk 0:01:35.7]} 23... Rae8 {[%clk
0:02:08.5]} 24. Bc4 {[%clk 0:01:31.9]} 24... d6 {[%clk 0:02:04.1]} 25. Bh6
{[%clk 0:01:28.5]} 25... Rxe5 {[%clk 0:02:03.3]} 26. Qb2 {[%clk 0:01:26.4]}
26... Rfe8 {[%clk 0:02:01.7]} 27. Nd4 {[%clk 0:01:20.1]} 27... Bd7 {[%clk
0:01:20.4]} 28. Nf3 {[%clk 0:01:11.9]} 28... Bc6 {[%clk 0:01:17.4]} 29. Nxe5
{[%clk 0:01:05.7]} 29... dxe5 {[%clk 0:01:18.3]} 30. h3 {[%clk 0:01:03.4]} 30...
Re7 {[%clk 0:00:48]} 31. Rd3 {[%clk 0:00:56.2]} 31... Re8 {[%clk 0:00:29.7]} 32.
Rdf3 {[%clk 0:00:49.8]} 32... Nf4 {[%clk 0:00:28.6]} 33. Rxf4 {[%clk 0:00:45.8]}
33... Bxg2+ {[%clk 0:00:28.1]} 34. Kh2 {[%clk 0:00:44.3]} 34... Bd5 {[%clk
0:00:23.4]} 35. Rxf7 {[%clk 0:00:41.4]} 35... Bxf7 {[%clk 0:00:23.4]} 36. Bxf7+
{[%clk 0:00:39]} 36... Qxf7 {[%clk 0:00:24]} 37. Rxf7 {[%clk 0:00:38.6]} 37...
Kxf7 {[%clk 0:00:24.9]} 38. Qg2 {[%clk 0:00:37]} 38... e4 {[%clk 0:00:24.3]} 39.
Qf1+ {[%clk 0:00:36.5]} 39... Ke7 {[%clk 0:00:23]} 40. Bg5+ {[%clk 0:00:35.2]}
40... Kd6 {[%clk 0:00:22.1]} 41. Qf6+ {[%clk 0:00:33.5]} 41... Kd7 {[%clk
0:00:20.5]} 42. Qf7+ {[%clk 0:00:32.2]} 42... Be7 {[%clk 0:00:20.8]} 43. Qd5+
{[%clk 0:00:32.3]} 43... Bd6+ {[%clk 0:00:21.1]} 44. Bf4 {[%clk 0:00:32.1]}
44... Re6 {[%clk 0:00:21.2]} 45. Bxd6 {[%clk 0:00:32.3]} 45... Rxd6 {[%clk
0:00:22.1]} 46. Qxe4 {[%clk 0:00:33]} 46... h5 {[%clk 0:00:21.8]} 47. Qe5 {[%clk
0:00:31.1]} 47... Rd2+ {[%clk 0:00:21.2]} 48. Kg3 {[%clk 0:00:31.5]} 48... Rd3+
{[%clk 0:00:21.5]} 49. Kh4 {[%clk 0:00:32]} 49... Rd6 {[%clk 0:00:20.6]} 50.
Qxa5 {[%clk 0:00:31.3]} 1-0

[Event "*** Titled Tuesday Blitz"]
[Site "Chess.com"]
[Date "2021.02.16"]
[Round "1"]
[White "TST2014"]
[Black "Michaelson_11"]
[Result "1-0"]
[WhiteElo "2580"]
[BlackElo "2268"]
[TimeControl "180+1"]
[EndTime "10:07:20 PST"]
[Termination "TST2014 won on time"]

1. d4 {[%clk 0:03:00.9]} 1... Nf6 {[%clk 0:02:59.3]} 2. c4 {[%clk 0:02:59.7]}
2... g6 {[%clk 0:02:58.9]} 3. Nc3 {[%clk 0:02:59.2]} 3... Bg7 {[%clk 0:02:58.1]}
4. e4 {[%clk 0:02:59]} 4... d5 {[%clk 0:02:58.9]} 5. cxd5 {[%clk 0:02:58]} 5...
O-O {[%clk 0:02:57.6]} 6. h3 {[%clk 0:02:49.5]} 6... a6 {[%clk 0:02:47.6]} 7. a4
{[%clk 0:02:47.4]} 7... Re8 {[%clk 0:02:36.1]} 8. Nf3 {[%clk 0:02:34.7]} 8... e6
{[%clk 0:02:23.8]} 9. dxe6 {[%clk 0:02:30.6]} 9... Bxe6 {[%clk 0:02:24.7]} 10.
Bd3 {[%clk 0:02:14.8]} 10... Bd5 {[%clk 0:02:15.3]} 11. Bg5 {[%clk 0:01:55.3]}
11... Nxe4 {[%clk 0:01:33.2]} 12. Nxe4 {[%clk 0:01:22.4]} 12... Bxe4 {[%clk
0:00:52.6]} 13. Bxd8 {[%clk 0:01:20.2]} 13... Bxf3+ {[%clk 0:00:52.6]} 14. Be2
{[%clk 0:01:19.2]} 14... Bxe2 {[%clk 0:00:49.6]} 15. Qxe2 {[%clk 0:01:19.2]}
15... Rxe2+ {[%clk 0:00:49.1]} 16. Kxe2 {[%clk 0:01:19.2]} 16... Nc6 {[%clk
0:00:50]} 17. Bxc7 {[%clk 0:01:16.8]} 17... Nxd4+ {[%clk 0:00:49.9]} 18. Kd3
{[%clk 0:01:08.7]} 18... Nb3 {[%clk 0:00:32]} 19. Rae1 {[%clk 0:00:56.3]} 19...
Rc8 {[%clk 0:00:27.9]} 20. Be5 {[%clk 0:00:32.6]} 20... Nc5+ {[%clk 0:00:21.7]}
21. Kd4 {[%clk 0:00:24]} 21... Nb3+ {[%clk 0:00:17.8]} 22. Kd5 {[%clk 0:00:24]}
22... Rc5+ {[%clk 0:00:14.6]} 23. Kd6 {[%clk 0:00:23.8]} 23... Bf8+ {[%clk
0:00:14.5]} 24. Kd7 {[%clk 0:00:22.4]} 24... Rd5+ {[%clk 0:00:06.7]} 25. Kc7
{[%clk 0:00:18.6]} 25... Nc5 {[%clk 0:00:07.2]} 26. Bc3 {[%clk 0:00:15.5]} 26...
Rd7+ {[%clk 0:00:07.1]} 27. Kc8 {[%clk 0:00:15.2]} 27... Bd6 {[%clk 0:00:05.3]}
28. Re8+ {[%clk 0:00:14.7]} 28... Bf8 {[%clk 0:00:05]} 29. b4 {[%clk 0:00:14.1]}
29... Rd3 {[%clk 0:00:04.1]} 30. Rc1 {[%clk 0:00:12.9]} 30... Ne6 {[%clk
0:00:03.4]} 31. Bf6 {[%clk 0:00:10.4]} 31... Rd2 {[%clk 0:00:01.8]} 32. Kb8
{[%clk 0:00:10.4]} 32... Rd7 {[%clk 0:00:01.5]} 33. Rcc8 {[%clk 0:00:09.6]}
33... b5 {[%clk 0:00:01.9]} 34. Be7 {[%clk 0:00:09.8]} 1-0